[Event "Titled Tuesday Blitz March 08 Late 2022"]
[White "Petrovic, Aleksa"]
[Black "Mekhitarian, Krikor Sevag"]
[WhiteFideId "967629"]
[BlackFideId "2107660"]
[WhiteElo "2501"]
[BlackElo "2738"]
[Result "1-0"]
[Round "05"]
[TimeControl "180+1"]
[Date "2022.03.09"]
[WhiteClock "0:00:09"]
[BlackClock "0:00:03"]

1. e4 {[%clk 0:03:00]}  c5 {[%clk 0:02:59]} 2. Nf3 {[%clk 0:03:00]}  g6 {[%clk 0:02:56]} 3. c3 {[%clk 0:02:51]}  d5 {[%clk 0:02:51]} 4. exd5 {[%clk 0:02:50]}  Qxd5 {[%clk 0:02:50]} 5. Na3 {[%clk 0:02:47]}  Bg7 {[%clk 0:02:46]} 6. d4 {[%clk 0:02:41]}  cxd4 {[%clk 0:02:41]} 7. Bc4 {[%clk 0:02:41]}  Qe4+ {[%clk 0:02:40]} 8. Be3 {[%clk 0:02:41]}  Nh6 {[%clk 0:02:35]} 9. Nb5 {[%clk 0:02:26]}  O-O {[%clk 0:02:26]} 10. cxd4 {[%clk 0:02:12]}  Nc6 {[%clk 0:02:19]} 11. Nc3 {[%clk 0:02:02]}  Qg4 {[%clk 0:02:16]} 12. h3 {[%clk 0:01:56]}  Qh5 {[%clk 0:02:09]} 13. O-O {[%clk 0:01:20]}  Bd7 {[%clk 0:01:43]} 14. Re1 {[%clk 0:01:00]}  Rad8 {[%clk 0:01:33]} 15. d5 {[%clk 0:00:55]}  Ne5 {[%clk 0:01:07]} 16. Nxe5 {[%clk 0:00:48]}  Qxd1 {[%clk 0:00:40]} 17. Raxd1 {[%clk 0:00:48]}  Bc8 {[%clk 0:00:41]} 18. Bxa7 {[%clk 0:00:36]}  Nf5 {[%clk 0:00:40]} 19. Bb6 {[%clk 0:00:35]}  Rd6 {[%clk 0:00:40]} 20. Bc5 {[%clk 0:00:33]}  Rf6 {[%clk 0:00:40]} 21. Ng4 {[%clk 0:00:30]}  Rd6 {[%clk 0:00:32]} 22. Bxd6 {[%clk 0:00:30]}  exd6 {[%clk 0:00:33]} 23. Nb5 {[%clk 0:00:22]}  Rd8 {[%clk 0:00:33]} 24. Bd3 {[%clk 0:00:22]}  Nh4 {[%clk 0:00:31]} 25. Re7 {[%clk 0:00:20]}  Bd7 {[%clk 0:00:30]} 26. Rc1 {[%clk 0:00:18]}  Kf8 {[%clk 0:00:27]} 27. Re2 {[%clk 0:00:16]}  h5 {[%clk 0:00:28]} 28. Ne3 {[%clk 0:00:16]}  f5 {[%clk 0:00:25]} 29. Nxd6 {[%clk 0:00:15]}  f4 {[%clk 0:00:25]} 30. Nec4 {[%clk 0:00:15]}  f3 {[%clk 0:00:26]} 31. gxf3 {[%clk 0:00:16]}  Bxh3 {[%clk 0:00:25]} 32. Kh2 {[%clk 0:00:11]}  Bd7 {[%clk 0:00:24]} 33. Kg3 {[%clk 0:00:12]}  g5 {[%clk 0:00:22]} 34. Rce1 {[%clk 0:00:12]}  b5 {[%clk 0:00:21]} 35. Ne5 {[%clk 0:00:12]}  Bc8 {[%clk 0:00:09]} 36. Nef7 {[%clk 0:00:10]}  Nxf3 {[%clk 0:00:03]} 37. Re8+ {[%clk 0:00:09]} 1-0


[Site "https://www.chess.com"]

[Event "Titled Tuesday Blitz March 08 Late 2022"]
[White "Piesik, Piotr"]
[Black "Koutlas, Nikolaos"]
[WhiteFideId "1136194"]
[BlackFideId "25827138"]
[WhiteElo "2190"]
[BlackElo "1610"]
[Result "0-1"]
[Round "05"]
[TimeControl "180+1"]
[Date "2022.03.09"]
[WhiteClock "0:00:01"]
[BlackClock "0:00:04"]

1. Nf3 {[%clk 0:03:00]}  Nf6 {[%clk 0:02:55]} 2. g3 {[%clk 0:03:01]}  g6 {[%clk 0:02:53]} 3. Bg2 {[%clk 0:03:01]}  Bg7 {[%clk 0:02:53]} 4. O-O {[%clk 0:03:02]}  O-O {[%clk 0:02:53]} 5. d4 {[%clk 0:03:02]}  d6 {[%clk 0:02:51]} 6. Nbd2 {[%clk 0:03:02]}  c6 {[%clk 0:02:52]} 7. e4 {[%clk 0:03:02]}  Qa5 {[%clk 0:02:49]} 8. e5 {[%clk 0:02:59]}  dxe5 {[%clk 0:02:48]} 9. Nc4 {[%clk 0:02:59]}  Qc7 {[%clk 0:02:37]} 10. Nfxe5 {[%clk 0:02:59]}  Be6 {[%clk 0:02:29]} 11. Bf4 {[%clk 0:02:58]}  Qc8 {[%clk 0:02:22]} 12. Re1 {[%clk 0:02:56]}  Bd5 {[%clk 0:02:20]} 13. Qd3 {[%clk 0:02:48]}  Bxg2 {[%clk 0:02:18]} 14. Kxg2 {[%clk 0:02:49]}  Nd5 {[%clk 0:02:18]} 15. Bd2 {[%clk 0:02:49]}  Nd7 {[%clk 0:02:13]} 16. Na5 {[%clk 0:02:33]}  Rd8 {[%clk 0:02:06]} 17. Qf3 {[%clk 0:02:17]}  Nxe5 {[%clk 0:02:00]} 18. dxe5 {[%clk 0:02:18]}  b6 {[%clk 0:01:49]} 19. Nc4 {[%clk 0:02:09]}  b5 {[%clk 0:01:49]} 20. Na5 {[%clk 0:02:07]}  Qe6 {[%clk 0:01:44]} 21. Rad1 {[%clk 0:01:58]}  Bxe5 {[%clk 0:01:34]} 22. Bf4 {[%clk 0:01:41]}  Nxf4+ {[%clk 0:01:03]} 23. gxf4 {[%clk 0:01:41]}  Rxd1 {[%clk 0:00:59]} 24. Qxd1 {[%clk 0:01:40]}  Qxa2 {[%clk 0:00:58]} 25. Nxc6 {[%clk 0:01:38]}  Bf6 {[%clk 0:00:42]} 26. b3 {[%clk 0:01:28]}  e6 {[%clk 0:00:36]} 27. Qd3 {[%clk 0:01:14]}  Qa6 {[%clk 0:00:31]} 28. Qd7 {[%clk 0:01:12]}  Qc8 {[%clk 0:00:20]} 29. Qd6 {[%clk 0:01:02]}  Qb7 {[%clk 0:00:18]} 30. Kg1 {[%clk 0:00:56]}  Rc8 {[%clk 0:00:18]} 31. Ne5 {[%clk 0:00:27]}  Rxc2 {[%clk 0:00:17]} 32. Nd7 {[%clk 0:00:21]}  Bg7 {[%clk 0:00:10]} 33. Qd3 {[%clk 0:00:09]}  Rc3 {[%clk 0:00:09]} 34. Qd6 {[%clk 0:00:08]}  h5 {[%clk 0:00:08]} 35. Rd1 {[%clk 0:00:07]}  Rxb3 {[%clk 0:00:06]} 36. Nc5 {[%clk 0:00:06]}  Qf3 {[%clk 0:00:04]} 37. Nxb3 {[%clk 0:00:06]}  Qxb3 {[%clk 0:00:05]} 38. Qd7 {[%clk 0:00:04]}  a5 {[%clk 0:00:04]} 39. Qe8+ {[%clk 0:00:04]}  Kh7 {[%clk 0:00:05]} 40. Rd7 {[%clk 0:00:04]}  Qb1+ {[%clk 0:00:04]} 41. Kg2 {[%clk 0:00:04]}  Qe4+ {[%clk 0:00:03]} 42. Kg1 {[%clk 0:00:04]}  Qb1+ {[%clk 0:00:03]} 43. Kg2 {[%clk 0:00:04]}  Qe4+ {[%clk 0:00:03]} 44. Kf1 {[%clk 0:00:04]}  Qxf4 {[%clk 0:00:04]} 45. Rxf7 {[%clk 0:00:02]}  Qc1+ {[%clk 0:00:04]} 46. Ke2 {[%clk 0:00:01]}  Qb2+ {[%clk 0:00:03]} 47. Kf3 {[%clk 0:00:01]}  Qc3+ {[%clk 0:00:04]} 48. Kg2 {[%clk 0:00:01]}  b4 {[%clk 0:00:04]} 0-1


[Site "https://www.chess.com"]

[Event "Titled Tuesday Blitz March 08 Late 2022"]
[White "Riehle, Marco"]
[Black "Van Foreest, Jorden"]
[WhiteFideId "12904392"]
[BlackFideId "1039784"]
[WhiteElo "2462"]
[BlackElo "2609"]
[Result "0-1"]
[Round "05"]
[TimeControl "180+1"]
[Date "2022.03.08"]
[WhiteClock "0:01:10"]
[BlackClock "0:01:36"]

1. e4 {[%clk 0:02:58]}  c6 {[%clk 0:02:52]} 2. c4 {[%clk 0:02:58]}  d5 {[%clk 0:02:51]} 3. cxd5 {[%clk 0:02:59]}  cxd5 {[%clk 0:02:52]} 4. exd5 {[%clk 0:03:00]}  Nf6 {[%clk 0:02:52]} 5. Nc3 {[%clk 0:03:00]}  g6 {[%clk 0:02:53]} 6. Bc4 {[%clk 0:03:00]}  Bg7 {[%clk 0:02:53]} 7. Nf3 {[%clk 0:03:00]}  O-O {[%clk 0:02:52]} 8. O-O {[%clk 0:03:01]}  Nbd7 {[%clk 0:02:49]} 9. d3 {[%clk 0:03:00]}  a6 {[%clk 0:02:42]} 10. a4 {[%clk 0:03:00]}  Nb6 {[%clk 0:02:31]} 11. Qb3 {[%clk 0:02:59]}  Bf5 {[%clk 0:02:30]} 12. Re1 {[%clk 0:02:55]}  Rc8 {[%clk 0:02:29]} 13. Be3 {[%clk 0:02:49]}  Nfd7 {[%clk 0:02:22]} 14. a5 {[%clk 0:02:37]}  Nxc4 {[%clk 0:02:22]} 15. dxc4 {[%clk 0:02:37]}  Qc7 {[%clk 0:02:23]} 16. Bd4 {[%clk 0:02:23]}  Rfe8 {[%clk 0:02:18]} 17. Bxg7 {[%clk 0:02:21]}  Kxg7 {[%clk 0:02:19]} 18. h3 {[%clk 0:01:57]}  Qxc4 {[%clk 0:02:12]} 19. Qxb7 {[%clk 0:01:55]}  Rc7 {[%clk 0:02:12]} 20. Ra4 {[%clk 0:01:25]}  Qxc3 {[%clk 0:02:07]} 21. Qxa6 {[%clk 0:01:24]}  Qxb2 {[%clk 0:02:04]} 22. Qf1 {[%clk 0:01:24]}  Qb3 {[%clk 0:01:59]} 23. Rd4 {[%clk 0:01:21]}  Nc5 {[%clk 0:01:47]} 24. d6 {[%clk 0:01:16]}  Rd7 {[%clk 0:01:42]} 25. dxe7 {[%clk 0:01:11]}  Bd3 {[%clk 0:01:38]} 26. Rxd3 {[%clk 0:01:10]}  Qxd3 {[%clk 0:01:36]} 0-1


[Site "https://www.chess.com"]

[Event "Titled Tuesday Blitz March 08 Late 2022"]
[White "Risteski, Emil"]
[Black "Yuan, Qingyu"]
[WhiteFideId "15005267"]
[BlackFideId "8609772"]
[WhiteElo "2070"]
[BlackElo "2359"]
[Result "1/2-1/2"]
[Round "05"]
[TimeControl "180+1"]
[Date "2022.03.08"]
[WhiteClock "0:00:11"]
[BlackClock "0:00:09"]

1. e4 {[%clk 0:03:00]}  c5 {[%clk 0:02:59]} 2. Nc3 {[%clk 0:02:57]}  d6 {[%clk 0:02:59]} 3. f4 {[%clk 0:02:57]}  g6 {[%clk 0:03:00]} 4. Nf3 {[%clk 0:02:56]}  Bg7 {[%clk 0:03:00]} 5. Bb5+ {[%clk 0:02:56]}  Bd7 {[%clk 0:03:01]} 6. Bc4 {[%clk 0:02:48]}  Nc6 {[%clk 0:03:01]} 7. O-O {[%clk 0:02:46]}  e6 {[%clk 0:03:01]} 8. f5 {[%clk 0:02:33]}  Nf6 {[%clk 0:03:01]} 9. fxe6 {[%clk 0:02:26]}  Bxe6 {[%clk 0:02:48]} 10. Bb5 {[%clk 0:02:13]}  O-O {[%clk 0:02:45]} 11. Bxc6 {[%clk 0:02:10]}  bxc6 {[%clk 0:02:45]} 12. d3 {[%clk 0:02:11]}  h6 {[%clk 0:02:31]} 13. Qe1 {[%clk 0:02:05]}  Nd7 {[%clk 0:02:15]} 14. Bf4 {[%clk 0:01:59]}  Ne5 {[%clk 0:02:09]} 15. Nxe5 {[%clk 0:01:59]}  dxe5 {[%clk 0:02:08]} 16. Be3 {[%clk 0:01:58]}  c4 {[%clk 0:02:07]} 17. dxc4 {[%clk 0:01:53]}  Bxc4 {[%clk 0:02:07]} 18. Rf2 {[%clk 0:01:53]}  Qh4 {[%clk 0:02:01]} 19. Rd2 {[%clk 0:01:48]}  Qg4 {[%clk 0:01:56]} 20. h3 {[%clk 0:01:37]}  Qe6 {[%clk 0:01:53]} 21. Rad1 {[%clk 0:01:33]}  Qe7 {[%clk 0:01:31]} 22. Rd6 {[%clk 0:01:22]}  Qb7 {[%clk 0:01:20]} 23. b3 {[%clk 0:01:19]}  Be6 {[%clk 0:01:13]} 24. Na4 {[%clk 0:01:17]}  Rfe8 {[%clk 0:01:11]} 25. Nc5 {[%clk 0:01:15]}  Qc8 {[%clk 0:01:12]} 26. Nxe6 {[%clk 0:01:12]}  Rxe6 {[%clk 0:01:12]} 27. Qd2 {[%clk 0:01:02]}  Qe8 {[%clk 0:00:58]} 28. Rd8 {[%clk 0:00:52]}  Rxd8 {[%clk 0:00:57]} 29. Qxd8 {[%clk 0:00:53]}  a6 {[%clk 0:00:46]} 30. Qxe8+ {[%clk 0:00:46]}  Rxe8 {[%clk 0:00:46]} 31. Rd7 {[%clk 0:00:41]}  f5 {[%clk 0:00:42]} 32. Rd6 {[%clk 0:00:34]}  f4 {[%clk 0:00:39]} 33. Bb6 {[%clk 0:00:28]}  Re7 {[%clk 0:00:29]} 34. Kf1 {[%clk 0:00:23]}  g5 {[%clk 0:00:26]} 35. Rxc6 {[%clk 0:00:21]}  Rd7 {[%clk 0:00:26]} 36. Ke2 {[%clk 0:00:20]}  h5 {[%clk 0:00:19]} 37. Rc7 {[%clk 0:00:17]}  Rd6 {[%clk 0:00:16]} 38. Bc5 {[%clk 0:00:17]}  Re6 {[%clk 0:00:14]} 39. c4 {[%clk 0:00:16]}  g4 {[%clk 0:00:15]} 40. Bf2 {[%clk 0:00:11]}  f3+ {[%clk 0:00:08]} 41. Kf1 {[%clk 0:00:11]}  Rg6 {[%clk 0:00:05]} 42. hxg4 {[%clk 0:00:11]}  fxg2+ {[%clk 0:00:04]} 43. Kxg2 {[%clk 0:00:12]}  Rxg4+ {[%clk 0:00:05]} 44. Kf3 {[%clk 0:00:12]}  Rf4+ {[%clk 0:00:06]} 45. Ke3 {[%clk 0:00:11]}  Bh6 {[%clk 0:00:06]} 46. Ke2 {[%clk 0:00:09]}  Rxe4+ {[%clk 0:00:07]} 47. Kf3 {[%clk 0:00:08]}  Rf4+ {[%clk 0:00:07]} 48. Kg2 {[%clk 0:00:09]}  e4 {[%clk 0:00:07]} 49. Rc6 {[%clk 0:00:06]}  Rg4+ {[%clk 0:00:08]} 50. Kh3 {[%clk 0:00:05]}  Bg5 {[%clk 0:00:06]} 51. Bd4 {[%clk 0:00:03]}  e3 {[%clk 0:00:06]} 52. Bc5 {[%clk 0:00:03]}  Kf7 {[%clk 0:00:04]} 53. Rc7+ {[%clk 0:00:03]}  Ke6 {[%clk 0:00:05]} 54. Rc8 {[%clk 0:00:04]}  Kd7 {[%clk 0:00:04]} 55. Rg8 {[%clk 0:00:02]}  e2 {[%clk 0:00:05]} 56. Bf2 {[%clk 0:00:03]}  Bd2 {[%clk 0:00:05]} 57. Rxg4 {[%clk 0:00:02]}  hxg4+ {[%clk 0:00:06]} 58. Kxg4 {[%clk 0:00:03]}  e1=Q {[%clk 0:00:06]} 59. Bxe1 {[%clk 0:00:03]}  Bxe1 {[%clk 0:00:07]} 60. Kf3 {[%clk 0:00:04]}  Kd6 {[%clk 0:00:07]} 61. Ke2 {[%clk 0:00:04]}  Bh4 {[%clk 0:00:06]} 62. Kd3 {[%clk 0:00:05]}  Kc5 {[%clk 0:00:06]} 63. a3 {[%clk 0:00:06]}  Bf6 {[%clk 0:00:03]} 64. b4+ {[%clk 0:00:06]}  Kb6 {[%clk 0:00:04]} 65. Kc2 {[%clk 0:00:06]}  Be5 {[%clk 0:00:04]} 66. Kb3 {[%clk 0:00:06]}  Kb7 {[%clk 0:00:05]} 67. a4 {[%clk 0:00:06]}  Bd4 {[%clk 0:00:05]} 68. a5 {[%clk 0:00:07]}  Be5 {[%clk 0:00:05]} 69. Ka4 {[%clk 0:00:08]}  Bc7 {[%clk 0:00:05]} 70. b5 {[%clk 0:00:09]}  Bd6 {[%clk 0:00:06]} 71. bxa6+ {[%clk 0:00:09]}  Kxa6 {[%clk 0:00:06]} 72. Kb3 {[%clk 0:00:10]}  Bc5 {[%clk 0:00:07]} 73. Ka4 {[%clk 0:00:10]}  Bd6 {[%clk 0:00:08]} 74. c5 {[%clk 0:00:11]}  Bxc5 {[%clk 0:00:08]} 75. Kb3 {[%clk 0:00:11]}  Kxa5 {[%clk 0:00:09]} 1/2-1/2


[Site "https://www.chess.com"]

[Event "Titled Tuesday Blitz March 08 Late 2022"]
[White "Ronka, Erik"]
[Black "Jaferian, Koosha"]
[WhiteFideId "505080"]
[BlackFideId "12507440"]
[WhiteElo "2264"]
[BlackElo "2030"]
[Result "0-1"]
[Round "05"]
[TimeControl "180+1"]
[Date "2022.03.08"]
[WhiteClock "0:00:01"]
[BlackClock "0:00:19"]

1. e4 {[%clk 0:03:00]}  c6 {[%clk 0:03:00]} 2. Nf3 {[%clk 0:03:00]}  d5 {[%clk 0:03:01]} 3. Nc3 {[%clk 0:03:00]}  Bg4 {[%clk 0:03:01]} 4. h3 {[%clk 0:03:00]}  Bxf3 {[%clk 0:03:01]} 5. Qxf3 {[%clk 0:03:00]}  e6 {[%clk 0:03:02]} 6. d4 {[%clk 0:03:00]}  dxe4 {[%clk 0:03:00]} 7. Qxe4 {[%clk 0:02:57]}  Nf6 {[%clk 0:02:59]} 8. Qd3 {[%clk 0:02:58]}  Na6 {[%clk 0:03:00]} 9. a3 {[%clk 0:02:54]}  Nc7 {[%clk 0:03:00]} 10. Be2 {[%clk 0:02:52]}  Bd6 {[%clk 0:03:00]} 11. O-O {[%clk 0:02:52]}  Qe7 {[%clk 0:03:00]} 12. b3 {[%clk 0:02:48]}  O-O-O {[%clk 0:02:57]} 13. Bb2 {[%clk 0:02:40]}  g5 {[%clk 0:02:54]} 14. Ne4 {[%clk 0:02:35]}  Nxe4 {[%clk 0:02:54]} 15. Qxe4 {[%clk 0:02:35]}  f5 {[%clk 0:02:49]} 16. Qe3 {[%clk 0:02:24]}  h5 {[%clk 0:02:47]} 17. c4 {[%clk 0:02:21]}  Bf4 {[%clk 0:02:25]} 18. Qf3 {[%clk 0:02:19]}  Rdg8 {[%clk 0:02:20]} 19. d5 {[%clk 0:02:15]}  e5 {[%clk 0:02:16]} 20. dxc6 {[%clk 0:02:11]}  g4 {[%clk 0:02:17]} 21. cxb7+ {[%clk 0:02:03]}  Kb8 {[%clk 0:02:17]} 22. Qc6 {[%clk 0:01:37]}  gxh3 {[%clk 0:02:13]} 23. g3 {[%clk 0:01:35]}  h4 {[%clk 0:02:13]} 24. Kh1 {[%clk 0:00:14]}  hxg3 {[%clk 0:02:14]} 25. fxg3 {[%clk 0:00:15]}  Rxg3 {[%clk 0:01:47]} 26. Rad1 {[%clk 0:00:12]}  Rg2 {[%clk 0:01:32]} 27. Rxf4 {[%clk 0:00:12]}  Rxe2 {[%clk 0:00:48]} 28. Rd7 {[%clk 0:00:11]}  Re1+ {[%clk 0:00:48]} 29. Kh2 {[%clk 0:00:12]}  Re2+ {[%clk 0:00:48]} 30. Kh1 {[%clk 0:00:12]}  Qxd7 {[%clk 0:00:34]} 31. Qxd7 {[%clk 0:00:11]}  Rxb2 {[%clk 0:00:35]} 32. Rxf5 {[%clk 0:00:07]}  Rb1+ {[%clk 0:00:35]} 33. Kh2 {[%clk 0:00:07]}  Rb2+ {[%clk 0:00:36]} 34. Kh1 {[%clk 0:00:06]}  h2 {[%clk 0:00:33]} 35. Rf1 {[%clk 0:00:04]}  Rxb3 {[%clk 0:00:32]} 36. c5 {[%clk 0:00:03]}  Rxb7 {[%clk 0:00:32]} 37. c6 {[%clk 0:00:03]}  Rb6 {[%clk 0:00:31]} 38. Qg7 {[%clk 0:00:03]}  Rc8 {[%clk 0:00:28]} 39. Rf8 {[%clk 0:00:02]}  Rxc6 {[%clk 0:00:24]} 40. Rxc8+ {[%clk 0:00:02]}  Kxc8 {[%clk 0:00:25]} 41. Qxe5 {[%clk 0:00:03]}  Kb7 {[%clk 0:00:22]} 42. Kxh2 {[%clk 0:00:03]}  Ra6 {[%clk 0:00:21]} 43. Qc3 {[%clk 0:00:03]}  Rc6 {[%clk 0:00:21]} 44. Qb4+ {[%clk 0:00:03]}  Rb6 {[%clk 0:00:22]} 45. Qe4+ {[%clk 0:00:03]}  Rc6 {[%clk 0:00:22]} 46. a4 {[%clk 0:00:04]}  Ne6 {[%clk 0:00:20]} 47. Kh3 {[%clk 0:00:03]}  a6 {[%clk 0:00:21]} 48. Qb4+ {[%clk 0:00:02]}  Kc7 {[%clk 0:00:21]} 49. Qe7+ {[%clk 0:00:02]}  Kb6 {[%clk 0:00:22]} 50. Kg4 {[%clk 0:00:02]}  Nc5 {[%clk 0:00:18]} 51. Qd8+ {[%clk 0:00:01]}  Rc7 {[%clk 0:00:19]} 0-1


[Site "https://www.chess.com"]

[Event "Titled Tuesday Blitz March 08 Late 2022"]
[White "Rudzinska, Michalina"]
[Black "Winkels, Marcel"]
[WhiteFideId "1172883"]
[BlackFideId "1003887"]
[WhiteElo "1904"]
[BlackElo "1900"]
[Result "1-0"]
[Round "05"]
[TimeControl "180+1"]
[Date "2022.03.09"]
[WhiteClock "0:01:35"]
[BlackClock "0:00:30"]

1. e4 {[%clk 0:03:00]}  c5 {[%clk 0:02:57]} 2. Nf3 {[%clk 0:02:58]}  d6 {[%clk 0:02:57]} 3. d4 {[%clk 0:02:59]}  cxd4 {[%clk 0:02:57]} 4. Nxd4 {[%clk 0:03:00]}  Nf6 {[%clk 0:02:56]} 5. Nc3 {[%clk 0:03:00]}  a6 {[%clk 0:02:57]} 6. h3 {[%clk 0:02:58]}  e5 {[%clk 0:02:55]} 7. Nb3 {[%clk 0:02:58]}  Be6 {[%clk 0:02:55]} 8. g4 {[%clk 0:02:56]}  Be7 {[%clk 0:02:53]} 9. Bg2 {[%clk 0:02:51]}  Nbd7 {[%clk 0:02:50]} 10. Be3 {[%clk 0:02:51]}  O-O {[%clk 0:02:45]} 11. Qd2 {[%clk 0:02:50]}  Nb6 {[%clk 0:02:36]} 12. Nd5 {[%clk 0:02:43]}  Nc4 {[%clk 0:02:26]} 13. Qe2 {[%clk 0:02:39]}  Bxd5 {[%clk 0:02:23]} 14. exd5 {[%clk 0:02:38]}  Nxe3 {[%clk 0:02:23]} 15. fxe3 {[%clk 0:02:33]}  Rc8 {[%clk 0:02:19]} 16. O-O-O {[%clk 0:02:33]}  a5 {[%clk 0:02:12]} 17. Nd2 {[%clk 0:02:29]}  Qc7 {[%clk 0:02:10]} 18. Ne4 {[%clk 0:02:27]}  a4 {[%clk 0:02:07]} 19. Kb1 {[%clk 0:02:24]}  a3 {[%clk 0:02:05]} 20. b3 {[%clk 0:02:23]}  Nxe4 {[%clk 0:02:04]} 21. Bxe4 {[%clk 0:02:23]}  Qc3 {[%clk 0:02:04]} 22. Kc1 {[%clk 0:02:23]}  Bg5 {[%clk 0:01:59]} 23. Rhe1 {[%clk 0:02:10]}  Qb2+ {[%clk 0:01:58]} 24. Kd2 {[%clk 0:02:10]}  Qc3+ {[%clk 0:01:50]} 25. Kc1 {[%clk 0:02:10]}  g6 {[%clk 0:01:46]} 26. Qd3 {[%clk 0:02:03]}  Rc5 {[%clk 0:01:35]} 27. Qxc3 {[%clk 0:02:00]}  Rxc3 {[%clk 0:01:35]} 28. Rd3 {[%clk 0:02:01]}  Rfc8 {[%clk 0:01:32]} 29. Rxc3 {[%clk 0:02:01]}  Rxc3 {[%clk 0:01:31]} 30. Kd2 {[%clk 0:02:02]}  Rc7 {[%clk 0:01:29]} 31. c4 {[%clk 0:02:02]}  b6 {[%clk 0:01:28]} 32. Kc3 {[%clk 0:02:02]}  Bh4 {[%clk 0:01:14]} 33. Re2 {[%clk 0:01:58]}  Be7 {[%clk 0:01:09]} 34. Kb4 {[%clk 0:01:57]}  Ra7 {[%clk 0:01:08]} 35. Kb5 {[%clk 0:01:58]}  Bd8 {[%clk 0:01:07]} 36. Kc6 {[%clk 0:01:57]}  Ra5 {[%clk 0:00:50]} 37. Kxd6 {[%clk 0:01:55]}  Rc5 {[%clk 0:00:47]} 38. Kxe5 {[%clk 0:01:53]}  b5 {[%clk 0:00:45]} 39. Bd3 {[%clk 0:01:45]}  bxc4 {[%clk 0:00:44]} 40. bxc4 {[%clk 0:01:45]}  Bc7+ {[%clk 0:00:44]} 41. Kd4 {[%clk 0:01:45]}  Ra5 {[%clk 0:00:43]} 42. c5 {[%clk 0:01:44]}  f6 {[%clk 0:00:42]} 43. d6 {[%clk 0:01:43]}  Bd8 {[%clk 0:00:41]} 44. c6 {[%clk 0:01:42]}  Bb6+ {[%clk 0:00:40]} 45. Ke4 {[%clk 0:01:39]}  Re5+ {[%clk 0:00:39]} 46. Kf3 {[%clk 0:01:37]}  Rd5 {[%clk 0:00:38]} 47. c7 {[%clk 0:01:36]}  Rc5 {[%clk 0:00:35]} 48. Rc2 {[%clk 0:01:36]}  Rxc2 {[%clk 0:00:33]} 49. Bxc2 {[%clk 0:01:35]}  Kf7 {[%clk 0:00:30]} 50. c8=Q {[%clk 0:01:35]} 1-0


[Site "https://www.chess.com"]

[Event "Titled Tuesday Blitz March 08 Late 2022"]
[White "Sanchez, Robert"]
[Black "Debray, Christopher"]
[WhiteFideId "2034360"]
[BlackFideId "630810"]
[WhiteElo "2280"]
[BlackElo "2393"]
[Result "0-1"]
[Round "05"]
[TimeControl "180+1"]
[Date "2022.03.09"]
[WhiteClock "0:01:14"]
[BlackClock "0:00:45"]

1. e4 {[%clk 0:02:54]}  c6 {[%clk 0:02:17]} 2. d4 {[%clk 0:02:51]}  d5 {[%clk 0:02:16]} 3. e5 {[%clk 0:02:52]}  c5 {[%clk 0:02:15]} 4. Nf3 {[%clk 0:02:43]}  cxd4 {[%clk 0:02:14]} 5. Nxd4 {[%clk 0:02:43]}  e6 {[%clk 0:02:09]} 6. Bd3 {[%clk 0:02:40]}  Nc6 {[%clk 0:02:10]} 7. Nf3 {[%clk 0:02:39]}  f6 {[%clk 0:02:09]} 8. Qe2 {[%clk 0:02:30]}  fxe5 {[%clk 0:02:05]} 9. Nxe5 {[%clk 0:02:30]}  Nf6 {[%clk 0:02:06]} 10. Nxc6 {[%clk 0:02:23]}  bxc6 {[%clk 0:02:06]} 11. O-O {[%clk 0:02:23]}  Bd6 {[%clk 0:02:05]} 12. f4 {[%clk 0:02:23]}  O-O {[%clk 0:02:05]} 13. Nc3 {[%clk 0:02:23]}  Bc5+ {[%clk 0:01:37]} 14. Kh1 {[%clk 0:02:23]}  Qe8 {[%clk 0:01:25]} 15. Bd2 {[%clk 0:02:18]}  Qh5 {[%clk 0:01:21]} 16. Rae1 {[%clk 0:02:03]}  Ng4 {[%clk 0:01:15]} 17. g3 {[%clk 0:01:43]}  e5 {[%clk 0:01:15]} 18. fxe5 {[%clk 0:01:43]}  Rf2 {[%clk 0:00:50]} 19. Rxf2 {[%clk 0:01:35]}  Bxf2 {[%clk 0:00:51]} 20. h4 {[%clk 0:01:23]}  Bxg3 {[%clk 0:00:51]} 21. Kg2 {[%clk 0:01:16]}  Bxe1 {[%clk 0:00:46]} 22. Qxe1 {[%clk 0:01:15]}  Be6 {[%clk 0:00:45]} 23. Qg3 {[%clk 0:01:14]}  Rf8 {[%clk 0:00:45]} 0-1


[Site "https://www.chess.com"]

[Event "Titled Tuesday Blitz March 08 Late 2022"]
[White "Spitzl, Vinzent"]
[Black "Stoleriu, George"]
[WhiteFideId "12901253"]
[BlackFideId "1227505"]
[WhiteElo "2160"]
[BlackElo "2203"]
[Result "1-0"]
[Round "05"]
[TimeControl "180+1"]
[Date "2022.03.09"]
[WhiteClock "0:00:42"]
[BlackClock "0:01:29"]

1. e4 {[%clk 0:03:00]}  e6 {[%clk 0:03:00]} 2. d4 {[%clk 0:02:57]}  d5 {[%clk 0:03:01]} 3. Nd2 {[%clk 0:02:57]}  Be7 {[%clk 0:02:59]} 4. Ngf3 {[%clk 0:02:47]}  Nf6 {[%clk 0:02:55]} 5. e5 {[%clk 0:02:41]}  Nfd7 {[%clk 0:02:54]} 6. Bd3 {[%clk 0:02:40]}  c5 {[%clk 0:02:55]} 7. c3 {[%clk 0:02:40]}  Nc6 {[%clk 0:02:56]} 8. O-O {[%clk 0:02:16]}  g5 {[%clk 0:02:54]} 9. dxc5 {[%clk 0:01:54]}  g4 {[%clk 0:02:52]} 10. Nd4 {[%clk 0:01:53]}  Ndxe5 {[%clk 0:02:53]} 11. N2b3 {[%clk 0:01:42]}  Nxd3 {[%clk 0:02:47]} 12. Qxd3 {[%clk 0:01:39]}  e5 {[%clk 0:02:47]} 13. Nxc6 {[%clk 0:01:37]}  bxc6 {[%clk 0:02:48]} 14. Bh6 {[%clk 0:01:28]}  Bf6 {[%clk 0:02:41]} 15. f3 {[%clk 0:01:20]}  g3 {[%clk 0:02:28]} 16. hxg3 {[%clk 0:01:16]}  Qd7 {[%clk 0:02:16]} 17. g4 {[%clk 0:01:07]}  a5 {[%clk 0:01:50]} 18. g5 {[%clk 0:00:55]}  Ba6 {[%clk 0:01:49]} 19. Qe3 {[%clk 0:00:54]}  Bxf1 {[%clk 0:01:35]} 20. gxf6 {[%clk 0:00:47]}  Bc4 {[%clk 0:01:29]} 21. Qxe5+ {[%clk 0:00:43]}  Qe7 {[%clk 0:01:29]} 22. Qxe7# {[%clk 0:00:42]} 1-0


[Site "https://www.chess.com"]